[Event "87th Spanish Championship 2022"]
[Site "Linares"]
[Date "2022.08.14"]
[Round "5.12"]
[White "Garrido Outon, Alex"]
[Black "Martinez-Conde Hernandez, Carlos"]
[Result "0-1"]
[ECO "B36"]
[WhiteElo "2436"]
[BlackElo "2205"]
[Annotator "TA"]
[PlyCount "92"]
[EventDate "2022.08.11"]
[EventType "swiss"]
[EventCountry "ESP"]
[SourceTitle "playchess.com"]
[Source "ChessBase"]
[SourceQuality "1"]
[TimeControl "5400+30"]

{[%evp 18,92,46,45,49,25,30,17,17,17,5,27,25,17,17,0,0,-32,-37,-37,0,-29,-31,-33,-10,-9,20,10,16,0,14,0,28,20,67,67,68,0,75,76,98,84,79,82,105,39,24,28,24,-18,-19,-18,0,-264,-262,-250,-252,-251,-286,-172,-237,-499,-437,-468,-482,-625,-617,-4631,-4631,-4631,-4631,-29980,-29981,-29989,-29990,-29997,-29998]} 1. e4 {[%emt 0:00:02]} c5 {[%emt 0:00:11]} 2. Nf3 {[%emt 0:00:05]} Nc6 {[%emt 0:00:16]} 3. d4 {[%emt 0:00:07]} cxd4 {[%emt 0:00:06]} 4. Nxd4 {[%emt 0:00:06]} g6 {[%emt 0:00:09]} 5. c4 {[%emt 0:00:06]} Nf6 {[%emt 0:00:31]} 6. Nc3 {[%emt 0:00:13]} d6 {[%emt 0:01:57]} 7. Be2 {[%emt 0:00:08]} Nxd4 {[%emt 0:00:07]} 8. Qxd4 {[%emt 0:00:05]} Bg7 {[%emt 0:00:08]} 9. Be3 {[%emt 0:00:09]} O-O {[%emt 0:00:10]} 10. Qd3 {[%emt 0:00:07]} Bd7 {[%emt 0:00:13] 10...a5 is the modern continuation. B36: Sicilian: Maroczy Bind: Gurgenidze System.} 11. O-O {[%emt 0:01:49]} a6 {[%emt 0:00:50]} 12. f3 {[%emt 0:05:18]} b5 {[%emt 0:02:58] The position is equal.} 13. cxb5 {[%emt 0:03:34]} axb5 {[%emt 0:00:07] [#]} 14. Nxb5 $146 {[%emt 0:17:57]} ({Predecessor:} 14. a3 Rb8 15. b4 Bc6 16. a4 bxa4 17. b5 Bb7 18. Rxa4 Nd7 19. Ra3 Nc5 20. Qc4 {1-0 (35) Bruzon Batista,L (2534)-Perelshteyn,E (2424) Yerevan 2000}) 14... Bxb5 {[%emt 0:00:11]} 15. Qxb5 {[%emt 0:00:10]} Rb8 {[%emt 0:00:11]} 16. Qa6 {[%emt 0:10:10]} Nd7 {[%emt 0:14:19]} 17. b3 {[%emt 0:12:42]} Bxa1 {[%emt 0:06:40]} 18. Rxa1 {[%emt 0:00:02]} Ra8 {[%emt 0:00:51]} 19. Qc4 {[%emt 0:06:14]} Qa5 {[%emt 0:03:22] Strongly threatening ...Rfc8.} 20. a4 {[%emt 0:16:37]} Rfc8 {[%emt 0:08:31]} (20... Rab8 $5 {[%cal Rf8c8]}) 21. Qd4 {[%emt 0:00:20]} e5 {[%emt 0:16:40]} 22. Qd1 {[%emt 0:01:08][%mdl 1024] White has compensation.} (22. Qxd6 $2 Qc3 23. Kf2 Qxa1 $19) 22... Qc3 {[%emt 0:07:49]} 23. Bf2 {[%emt 0:03:06]} Nc5 {[%emt 0:01:37]} 24. Rb1 {[%emt 0:00:35]} Ne6 {[%emt 0:00:10]} 25. Bc4 {[%emt 0:04:01]} Qb4 {[%emt 0:03:53]} (25... Rxc4 $11 {should be considered.} 26. bxc4 Nd4) 26. Rc1 {[%emt 0:05:34]} Kg7 {[%emt 0:02:13]} 27. g3 {[%emt 0:03:12]} (27. h3 $14) 27... Rd8 {[%emt 0:04:29]} (27... Rab8 $11 {remains equal.}) 28. Kg2 $16 {[%emt 0:00:49]} Rac8 {[%emt 0:00:55]} 29. Qd5 {[%emt 0:01:00]} Rd7 {[%emt 0:03:42][%cal Oe6d4,Bd8d7,Bd7c7,Bc7c2][%mdl 32]} 30. Rd1 {[%emt 0:01:39] Inhibits Nd4.} h5 {[%emt 0:02:27][%cal Bh7h5,Bh5h4,Bh4h3][%mdl 32]} 31. Qb5 {[%emt 0:03:11]} (31. Be1 $16 Qc5 32. Qxc5 Nxc5 33. a5) 31... Qxb5 $14 {[%emt 0:00:51]} 32. Bxb5 {[%emt 0:00:02] A strong pair of Bishops.} Rdc7 {[%emt 0:00:48]} 33. Rxd6 {[%emt 0:02:06]} (33. Bc4 $5) 33... Rc2 {[%emt 0:00:35] Threatens to win with ...Nc5.} 34. Bc4 {[%emt 0:00:35]} h4 {[%emt 0:01:28]} 35. Rd1 $2 {[%emt 0:02:44][%mdl 8192] [#]} ({But not} 35. Bxe6 fxe6 36. gxh4 (36. Rxe6 $2 h3+ 37. Kxh3 Rxf2 $19) 36... Re2 37. Rd7+ (37. Rxe6 $2 Rcc2 $19) 37... Kg8 $17) (35. gxh4 $11 {and White has nothing to worry.} Nf4+ 36. Kg3) 35... h3+ $1 $19 {[%emt 0:00:24]} 36. Kf1 {[%emt 0:00:08] [#]} Ng5 $1 {[%emt 0:00:59]} 37. Rd3 {[%emt 0:00:04]} f5 {[%emt 0:00:42]} 38. exf5 {[%emt 0:00:32]} gxf5 {[%emt 0:01:18]} 39. Rd7+ $2 {[%emt 0:00:58]} (39. a5 Kf6 40. g4) 39... Kh8 {[%emt 0:02:38]} 40. Rd3 {[%emt 0:01:41]} e4 {[%emt 0:01:54][%mdl 64] Deflection} 41. Rd5 {[%emt 0:01:18]} Nxf3 {[%emt 0:02:44]} 42. Rxf5 {[%emt 0:00:02]} Nxh2+ {[%emt 0:00:31]} 43. Kg1 {[%emt 0:00:01]} Nf3+ {[%emt 0:00:01]} 44. Rxf3 {[%emt 0:00:47]} exf3 {[%emt 0:00:11] Black mates.} 45. Bd4+ {[%emt 0:00:21]} Kh7 {[%emt 0:00:05]} 46. Be6 {[%emt 0:01:24]} Rg2+ {[%emt 0:00:09] Weighted Error Value: White=0.61/Black=0.11 (very precise)} 0-1

[Event "87th Spanish Championship 2022"]
[Site "Linares"]
[Date "2022.08.14"]
[Round "5.13"]
[White "Ladron De Guevara Pinto, Paolo"]
[Black "Luque Saiz, Andres"]
[Result "1/2-1/2"]
[ECO "D47"]
[WhiteElo "2444"]
[BlackElo "2289"]
[Annotator "TA"]
[PlyCount "108"]
[EventDate "2022.08.11"]
[EventType "swiss"]
[EventCountry "ESP"]
[SourceTitle "playchess.com"]
[Source "ChessBase"]
[SourceQuality "1"]
[TimeControl "5400+30"]

{[%evp 21,108,0,-10,-22,-1,-4,-2,-4,0,0,0,-8,-2,-2,0,0,0,-18,0,-12,-7,-9,0,0,0,0,-8,-10,-12,-24,-13,-29,-30,-30,-27,-45,-42,-43,-41,-46,-46,-46,-46,-48,-45,-45,-44,-52,-38,-43,-43,-87,-92,-95,-92,-87,-87,-95,-89,-88,-95,-106,-106,-105,-103,-106,-8,-8,-15,-8,0,0,0,0,0,0,0,0,0,0,0,0,0,0,0,0,0,0,0]} 1. d4 {[%emt 0:00:03]} d5 {[%emt 0:00:19]} 2. c4 {[%emt 0:00:22]} c6 {[%emt 0:00:11]} 3. Nc3 {[%emt 0:00:08]} Nf6 {[%emt 0:00:11]} 4. e3 {[%emt 0:00:07]} e6 {[%emt 0:01:28]} 5. Nf3 {[%emt 0:01:32]} Nbd7 {[%emt 0:01:07]} 6. Bd3 {[%emt 0:02:20]} dxc4 {[%emt 0:00:55]} 7. Bxc4 {[%emt 0:00:08]} b5 {[%emt 0:00:23]} 8. Bd3 {[%emt 0:00:22]} Bb7 {[%emt 0:02:35]} 9. O-O {[%emt 0:07:52]} a6 {[%emt 0:10:28]} 10. Qe2 {[%emt 0:14:44]} c5 {[%emt 0:13:25]} 11. Rd1 {[%emt 0:00:37]} Qc7 {[%emt 0:04:04]} 12. a3 {[%emt 0:06:46] D48: Semi-Slav: Meran System: 7...b5 8 Bd3 a6.} cxd4 {[%emt 0:18:48]} 13. exd4 {[%emt 0:02:47]} Bd6 {[%emt 0:03:38] Inhibits Ne5.} 14. Bg5 {[%emt 0:16:42] [#]} h6 $146 {[%emt 0:10:03]} ({Predecessor:} 14... Bf4 15. Bh4 O-O 16. Re1 Rac8 17. Rad1 Rfe8 18. Bb1 Qc4 19. Bd3 Qc6 20. Ne4 Nxe4 21. Bxe4 Qxe4 22. Qxe4 Bxe4 23. Rxe4 {0-1 (52) Avdhoot,L (2243)-Barseghyan,H (2478) Bastia 2017}) 15. Bxf6 {[%emt 0:06:32]} Nxf6 {[%emt 0:00:20]} 16. Rac1 {[%emt 0:01:37][%cal Oc3b5]} Qe7 {[%emt 0:03:03]} 17. Ne4 {[%emt 0:08:04]} Nxe4 {[%emt 0:04:01]} 18. Bxe4 {[%emt 0:00:05]} O-O {[%emt 0:00:24]} 19. Ne5 {[%emt 0:05:22]} Rac8 {[%emt 0:01:44]} 20. h3 {[%emt 0:16:28]} Rxc1 {[%emt 0:09:50]} 21. Rxc1 {[%emt 0:00:04]} Rc8 {[%emt 0:00:12]} 22. Rxc8+ {[%emt 0:05:57]} Bxc8 {[%emt 0:00:05]} 23. Qc2 {[%emt 0:00:27]} Qc7 {[%emt 0:00:55]} 24. Qxc7 {[%emt 0:00:25]} (24. Nc6 {feels hotter.} Bb7 25. d5 Bh2+ 26. Kf1) 24... Bxc7 $11 {[%emt 0:00:03][%mdl 4096] Endgame KBB-KBN} 25. Kf1 {[%emt 0:00:15]} f6 {[%emt 0:04:02][%cal Bf7f6,Bf6f5][%mdl 32]} 26. Nf3 {[%emt 0:00:36]} Kf7 {[%emt 0:03:32]} 27. Ke2 {[%emt 0:00:04]} Ke7 {[%emt 0:00:25]} 28. Ne1 {[%emt 0:00:21]} e5 {[%emt 0:00:59]} 29. dxe5 {[%emt 0:01:39]} f5 {[%emt 0:01:46]} 30. Bd5 {[%emt 0:00:40]} Bxe5 {[%emt 0:00:10]} 31. Nd3 {[%emt 0:00:06]} Bd4 {[%emt 0:00:24]} 32. b3 {[%emt 0:01:10]} Kd6 {[%emt 0:00:18]} 33. Bf7 {[%emt 0:00:05]} Bb7 {[%emt 0:01:43]} 34. f3 {[%emt 0:00:05]} g5 {[%emt 0:01:32]} 35. Kd2 {[%emt 0:00:14]} Ke7 {[%emt 0:00:57]} 36. Bg8 {[%emt 0:00:07]} h5 {[%emt 0:00:33][%cal Bh6h5,Bh5h4][%mdl 32]} 37. Nb4 {[%emt 0:01:05]} Kd6 {[%emt 0:00:22] Inhibits Bd5.} 38. Bf7 {[%emt 0:00:26] [#]} h4 $1 {[%emt 0:00:11]} 39. Bg6 {[%emt 0:01:08]} Ke5 {[%emt 0:00:21][%cal Og5g4]} 40. Nd3+ {[%emt 0:01:00]} Kf6 {[%emt 0:00:06]} 41. Be8 {[%emt 0:00:10]} g4 {[%emt 0:01:51]} 42. Ke2 {[%emt 0:00:21]} Bd5 {[%emt 0:02:23] Hoping for ...gxh3.} 43. b4 {[%emt 0:01:13]} Kg5 {[%emt 0:01:22]} ({Black should play} 43... Ke7 $17 44. Bg6 gxf3+ 45. gxf3 Be6) 44. Bd7 {[%emt 0:00:06] The position is equal.} gxf3+ {[%emt 0:00:44]} 45. gxf3 {[%emt 0:00:05]} Bc4 {[%emt 0:00:28]} 46. f4+ {[%emt 0:01:31]} Kf6 {[%emt 0:00:05]} 47. Bc8 {[%emt 0:00:03]} Bb2 {[%emt 0:00:35]} 48. Bxa6 {[%emt 0:00:04]} Bxa3 {[%emt 0:00:12]} 49. Kd2 {[%emt 0:00:06]} Bxd3 {[%emt 0:01:12]} 50. Kxd3 {[%emt 0:00:06]} Bc1 {[%emt 0:00:10]} 51. Bxb5 {[%emt 0:00:09]} Bxf4 {[%emt 0:00:03]} 52. Bc6 {[%emt 0:00:18]} Bd6 {[%emt 0:00:14]} 53. b5 {[%emt 0:00:07]} Bc5 {[%emt 0:00:02]} 54. Ke2 {[%emt 0:00:06]} Ke5 {[%emt 0:00:06] Weighted Error Value: White=0.04 (flawless) /Black=0.07 (flawless)} 1/2-1/2

[Event "87th Spanish Championship 2022"]
[Site "Linares"]
[Date "2022.08.14"]
[Round "5.14"]
[White "Plazuelo Pascual, Juan"]
[Black "Del Prado Rodriguez, Xulio"]
[Result "1-0"]
[ECO "B89"]
[WhiteElo "2448"]
[BlackElo "2282"]
[Annotator "TA"]
[PlyCount "53"]
[EventDate "2022.08.11"]
[EventType "swiss"]
[EventCountry "ESP"]
[SourceTitle "playchess.com"]
[Source "ChessBase"]
[SourceQuality "1"]
[TimeControl "5400+30"]

{[%evp 18,53,24,19,82,65,78,73,90,77,64,62,68,63,79,72,108,114,116,119,110,101,160,158,185,190,222,229,213,225,285,261,347,272,399,396,389,395]} 1. e4 {[%emt 0:00:03]} c5 {[%emt 0:00:15]} 2. Nf3 {[%emt 0:00:10]} d6 {[%emt 0:00:10]} 3. d4 {[%emt 0:00:04]} cxd4 {[%emt 0:00:08]} 4. Nxd4 {[%emt 0:00:03]} Nf6 {[%emt 0:00:21]} 5. Nc3 {[%emt 0:00:03]} Nc6 {[%emt 0:00:06]} 6. Bc4 {[%emt 0:00:30]} e6 {[%emt 0:03:10]} 7. Be3 {[%emt 0:01:44]} Be7 {[%emt 0:00:15]} 8. Qe2 {[%emt 0:02:23]} O-O {[%emt 0:02:57]} 9. O-O-O {[%emt 0:01:42]} Nxd4 {[%emt 0:02:08]} 10. Bxd4 {[%emt 0:17:53]} Bd7 {[%emt 0:14:45] B89: Sicilian: Velimirovic Attack.} (10... a6 $11 {remains equal.}) 11. f4 $16 {[%emt 0:02:08][%cal Bf2f4,Bf4e5,Be5d6,Bd6d7][%mdl 32]} Qa5 {[%emt 0:10:03]} 12. Bxf6 {[%emt 0:01:59] [#]} gxf6 $146 {[%emt 0:06:37] White is better.} ({Predecessor:} 12... Bxf6 13. e5 Be7 14. exd6 Bf6 15. Ne4 Qf5 16. Rhf1 b5 17. g4 Qg6 18. Bd3 Rfd8 19. Nxf6+ Qxf6 20. g5 Qd4 21. Bxh7+ Kxh7 22. Rxd4 {1-0 (22) Parligras,M (2565)-Simeonov,S (1802) Varna 2010}) 13. e5 {[%emt 0:06:56]} fxe5 {[%emt 0:08:47]} 14. fxe5 {[%emt 0:00:38]} Bc6 {[%emt 0:00:21]} 15. exd6 {[%emt 0:03:49]} Bf6 {[%emt 0:01:10]} 16. Ne4 {[%emt 0:12:38]} Bxe4 {[%emt 0:06:50]} 17. Qxe4 {[%emt 0:00:11]} Qe5 {[%emt 0:00:24]} 18. Qxe5 {[%emt 0:01:28] 0x0.0013bba6bdfbdp-1022s more active pieces. The black rooks are badly placed.} Bxe5 {[%emt 0:01:47]} 19. d7 {[%emt 0:14:34]} Rfd8 {[%emt 0:01:00]} (19... Kg7 $142 20. Rhf1 Rfd8) 20. Rhf1 {[%emt 0:00:49]} a6 {[%emt 0:12:36] [#]} 21. Be2 {[%emt 0:00:35]} Kf8 {[%emt 0:19:24] [#]} 22. Bh5 $1 {[%emt 0:01:19]} f6 {[%emt 0:00:06]} 23. Be8 {[%emt 0:01:24]} Ke7 {[%emt 0:00:06]} 24. Rd3 {[%emt 0:01:43]} Kf8 {[%emt 0:03:06]} 25. g4 {[%emt 0:03:48] And now Re3 would win.} h6 {[%emt 0:00:52]} (25... Rxe8 $142 26. dxe8=N Rxe8) 26. Re3 $18 {[%emt 0:00:27] Strongly threatening Rxe5.} Kg7 {[%emt 0:00:22]} 27. h4 {[%emt 0:00:48] Weighted Error Value: White=0.07 (flawless) /Black=0.33} 1-0

[Event "87th Spanish Championship 2022"]
[Site "Linares"]
[Date "2022.08.14"]
[Round "5.15"]
[White "Garrido Diaz, Jose Antonio"]
[Black "Garcia Ramos, Daniel"]
[Result "0-1"]
[ECO "B13"]
[WhiteElo "2306"]
[BlackElo "2438"]
[Annotator "TA"]
[PlyCount "112"]
[EventDate "2022.08.11"]
[EventType "swiss"]
[EventCountry "ESP"]
[SourceTitle "playchess.com"]
[Source "ChessBase"]
[SourceQuality "1"]
[TimeControl "5400+30"]

{[%evp 19,112,27,23,25,27,20,25,24,27,16,18,18,18,18,18,18,18,17,18,16,25,0,10,0,20,16,11,-87,-102,-95,-99,-104,0,0,72,63,60,72,131,76,90,42,73,73,58,31,91,104,118,0,0,0,0,-160,-152,-86,-25,-301,-301,-301,-301,-327,-327,-327,-327,-322,-315,-315,-301,-322,-308,-301,-264,-327,-327,-1572,-429,-423,-411,-371,-364,-447,-364,-342,-327,-29974,-29977,-29977,-29978,-29976,-29977,-29989,-29990,-29990,-29991]} 1. e4 {[%emt 0:00:08]} c6 {[%emt 0:00:20]} 2. d4 {[%emt 0:00:08]} d5 {[%emt 0:00:03]} 3. exd5 {[%emt 0:00:12]} cxd5 {[%emt 0:00:07]} 4. Bd3 {[%emt 0:00:05]} Nc6 {[%emt 0:00:09]} 5. c3 {[%emt 0:00:05]} Nf6 {[%emt 0:00:05]} 6. Bf4 {[%emt 0:00:08]} Bg4 {[%emt 0:00:21]} 7. Qb3 {[%emt 0:00:48]} Qd7 {[%emt 0:00:04]} 8. Nd2 {[%emt 0:00:13]} e6 {[%emt 0:00:05]} 9. Ngf3 {[%emt 0:00:06]} Bd6 {[%emt 0:01:43]} 10. Bxd6 {[%emt 0:00:19]} Qxd6 {[%emt 0:00:05]} 11. O-O {[%emt 0:00:08] B13: Caro-Kann: Exchange Variation and Panov-Botvinnik Attack.} O-O {[%emt 0:00:02]} 12. Rfe1 {[%emt 0:00:06]} Qc7 {[%emt 0:00:09]} 13. Ne5 {[%emt 0:01:10] White has an edge.} Nxe5 {[%emt 0:01:57]} 14. dxe5 {[%emt 0:03:50]} Nd7 {[%emt 0:00:25]} 15. Qb4 {[%emt 0:01:33]} Bh5 {[%emt 0:04:55]} 16. Qh4 {[%emt 0:01:05]} Bg6 {[%emt 0:00:15]} 17. Bxg6 {[%emt 0:00:06]} fxg6 {[%emt 0:00:41]} 18. Nf3 {[%emt 0:14:55] [#] Black must now prevent Ng5.} Nc5 $146 {[%emt 0:11:44]} ({Predecessor:} 18... Rae8 19. Nd4 a6 20. f3 Rf7 21. Re2 Nb8 22. Rd1 Nc6 23. Nxc6 bxc6 24. c4 Ref8 {½-½ (71) Blomqvist,E (2523)-Prohaszka,P (2610) Batumi 2019}) 19. Re3 {[%emt 0:15:00]} (19. Ng5 h6 20. Nf3 g5 $15) 19... Qb6 {[%emt 0:11:05]} 20. b3 {[%emt 0:04:02]} (20. Ng5 $2 h6 21. Nf3 Qxb2 $19) 20... a5 {[%emt 0:06:09]} 21. Rd1 {[%emt 0:03:30]} (21. Ng5 h6 22. Nf3 g5 $17) 21... Rac8 {[%emt 0:05:11]} 22. c4 {[%emt 0:16:20]} (22. Ng5 h6 23. Nf3 g5 $17) 22... Ne4 {[%emt 0:13:34]} 23. Rxe4 {[%emt 0:04:45]} (23. h3 $11) 23... dxe4 $17 {[%emt 0:00:20]} 24. Ng5 {[%emt 0:00:07][%csl Gg5][%cal Rh4h7]} h6 {[%emt 0:01:51]} 25. Nxe4 {[%emt 0:00:38]} Rc7 {[%emt 0:19:18]} (25... Rcd8 $17 {[%cal Rd8d1]} 26. Nd6 g5) 26. Qg4 $11 {[%emt 0:04:02]} Rcf7 {[%emt 0:02:25]} (26... Kh7 $11) 27. Qxg6 $16 {[%emt 0:02:27] c5 is the strong threat.} Kh8 {[%emt 0:06:01][%cal Oa5a4]} 28. h3 {[%emt 0:05:03]} a4 {[%emt 0:03:09]} (28... Rf5 $142) 29. c5 (29. bxa4 $6 Rf5 $11) (29. Kh2 $142) 29... Qb4 {[%emt 0:02:33]} 30. Rd3 {[%emt 0:11:29]} (30. f3 $6 axb3 31. Qxe6 b2 $11) ({Better is} 30. Kh2 $1 $16) 30... Qe1+ {[%emt 0:04:13]} 31. Kh2 {[%emt 0:00:05]} Qc1 {[%emt 0:00:19]} 32. Rd2 {[%emt 0:03:38]} Qa1 {[%emt 0:04:00]} (32... axb3 $14 33. axb3 Qb1) 33. Qxe6 {[%emt 0:01:31]} Rf5 {[%emt 0:00:33] [#]} 34. Rd8 {[%emt 0:01:15]} Rxf2 $11 {[%emt 0:02:00]} 35. Nxf2 {[%emt 0:04:03]} Rxd8 {[%emt 0:00:03][%mdl 4096] Endgame KQR-KQN} 36. Qe7 $2 {[%emt 0:00:38]} (36. Qf5 $11) 36... Qd4 $17 {[%emt 0:00:50]} 37. Ne4 {[%emt 0:00:48][%cal Ob3a4] [#]} Ra8 {[%emt 0:00:30]} (37... a3 $1 $17) 38. Qxb7 $2 {[%emt 0:01:43][%mdl 8192] This costs White the game.} (38. Ng3 $11 {and White stays safe.}) 38... Qxe5+ $19 {[%emt 0:00:03]} 39. Ng3 {[%emt 0:00:52]} Rb8 {[%emt 0:00:06]} 40. Qf7 {[%emt 0:01:33]} axb3 {[%emt 0:00:57]} ({Avoid the trap} 40... Qxc5 $2 41. bxa4 Ra8 42. Qf4 $19) 41. axb3 {[%emt 0:00:01]} Qxc5 {[%emt 0:00:07]} 42. Qd7 {[%emt 0:02:04]} Qe5 {[%emt 0:01:13]} ({Wrong is} 42... Rxb3 $2 43. Qe6 Re3 44. Ne4 Qc7+ 45. Qd6 Qxd6+ 46. Nxd6) 43. Qd3 {[%emt 0:00:17]} Qb5 {[%emt 0:01:30]} 44. Qg6 {[%emt 0:00:23]} Qxb3 {[%emt 0:00:37]} 45. Nf5 {[%emt 0:00:02][%csl Gf5][%cal Rg6g7]} Qb7 {[%emt 0:00:12]} 46. Nd6 {[%emt 0:00:54]} Qc7 {[%emt 0:00:09] ( -> ...Rd8)} 47. Kh1 $2 {[%emt 0:00:27]} (47. Qg3 Kg8 48. Nf5 Qxg3+ 49. Kxg3) 47... Rf8 {[%emt 0:00:55]} (47... Rb6 $142 48. Nf7+ Kg8 49. Nxh6+ Kf8) 48. Kg1 {[%emt 0:00:22]} Qc5+ {[%emt 0:00:23]} 49. Kh2 {[%emt 0:00:02]} Qe5+ {[%emt 0:00:08]} ({Not} 49... Rf1 50. Qe8+ Kh7 51. Qe4+ g6 52. Qe7+ Kg8 53. Qe8+ Kh7 54. Qe7+ Kg8 55. Qe8+ Kh7 56. Qe7+ $11) 50. Kg1 {[%emt 0:00:11]} Qe3+ {[%emt 0:00:10]} 51. Kh2 {[%emt 0:00:05]} Qf4+ {[%emt 0:01:13]} 52. Kh1 $2 {[%emt 0:00:13]} (52. Qg3 $19) 52... Ra8 {[%emt 0:00:21] Black mates.} 53. Nf7+ {[%emt 0:01:04]} Kg8 {[%emt 0:00:04]} 54. Nxh6+ {[%emt 0:00:06]} Qxh6 {[%emt 0:00:06]} 55. Qe4 {[%emt 0:00:03]} Ra1+ {[%emt 0:00:09]} 56. Kh2 {[%emt 0:00:02]} Qd6+ {[%emt 0:00:05] Weighted Error Value: White=0.65/Black=0.26 (precise)} 0-1

[Event "87th Spanish Championship 2022"]
[Site "Linares"]
[Date "2022.08.14"]
[Round "5.16"]
[White "Gonzalez Perez, Arian"]
[Black "Carbonell Sancho, Marc"]
[Result "1/2-1/2"]
[ECO "D85"]
[WhiteElo "2418"]
[BlackElo "2284"]
[Annotator "TA"]
[PlyCount "69"]
[EventDate "2022.08.11"]
[EventType "swiss"]
[EventCountry "ESP"]
[SourceTitle "playchess.com"]
[Source "ChessBase"]
[SourceQuality "1"]
[TimeControl "5400+30"]

{[%evp 21,69,4,0,4,9,12,16,7,16,22,23,-14,27,26,29,21,18,23,28,29,88,91,92,0,0,0,0,0,0,0,0,-15,0,0,0,-15,0,-15,-15,-16,-16,-16,0,0,0,0,0,0,0,0]} 1. d4 {[%emt 0:03:17]} Nf6 {[%emt 0:03:21]} 2. c4 {[%emt 0:00:38]} g6 {[%emt 0:00:04]} 3. Nc3 {[%emt 0:00:04]} d5 {[%emt 0:00:04]} 4. cxd5 {[%emt 0:00:35]} Nxd5 {[%emt 0:00:05]} 5. e4 {[%emt 0:00:19]} Nxc3 {[%emt 0:00:05]} 6. bxc3 {[%emt 0:00:03]} Bg7 {[%emt 0:00:06]} 7. Be3 {[%emt 0:00:27]} c5 {[%emt 0:00:09]} 8. Qd2 {[%emt 0:00:20]} Qa5 {[%emt 0:00:24]} 9. Rc1 {[%emt 0:00:14]} O-O {[%emt 0:00:09]} 10. Nf3 {[%emt 0:00:12]} Rd8 {[%emt 0:00:04]} 11. d5 {[%emt 0:00:50]} e6 {[%emt 0:00:05]} 12. Bg5 {[%emt 0:00:17] 12.Bg5 is better than 12.c4. D85: Exchange Grünfeld: Unusual White 7th moves and lines with 7 Nf3.} f6 {[%emt 0:00:05]} 13. Be3 {[%emt 0:00:10]} Nc6 {[%emt 0:01:10]} 14. h4 {[%emt 0:01:36][%cal Bh2h4,Bh4h5][%mdl 32]} exd5 {[%emt 0:16:31]} 15. exd5 {[%emt 0:00:06]} Bg4 {[%emt 0:00:03]} 16. h5 {[%emt 0:00:15]} Bxf3 {[%emt 0:08:50]} 17. gxf3 {[%emt 0:01:52]} Ne5 {[%emt 0:00:39]} 18. Be2 {[%emt 0:00:46]} c4 {[%emt 0:01:35]} 19. Rd1 {[%emt 0:00:14]} f5 {[%emt 0:10:07][%cal Oe5f3] [#] aiming for ...Nxf3+!} 20. Kf1 {[%emt 0:03:33] [#] Black must now prevent hxg6.} Nd3 $146 {[%emt 0:01:08]} (20... Rd6 $11 {keeps the balance.}) ({Predecessor:} 20... Nf7 21. Bxc4 Rac8 22. Bb3 Bxc3 23. Qe2 Nd6 24. Bg5 Qa6 25. Qxa6 bxa6 26. Bxd8 Rxd8 27. hxg6 hxg6 {1-0 (39) Mikhaylov,A (2237)-Popov,A (2144) Tuapse 2021}) 21. Bxd3 $16 {[%emt 0:00:11]} cxd3 {[%emt 0:04:27]} 22. c4 {[%emt 0:21:05]} ({Better is} 22. Qxd3 $16 {hxg6 is the strong threat.} Qxc3 23. Qe2) 22... Qxd2 $11 {[%emt 0:02:36] The position is equal.} 23. Rxd2 {[%emt 0:00:26]} b5 {[%emt 0:00:03]} 24. cxb5 {[%emt 0:00:39]} Rxd5 {[%emt 0:00:05]} 25. hxg6 {[%emt 0:00:12]} hxg6 {[%emt 0:00:06]} 26. a4 {[%emt 0:02:02]} Rd7 {[%emt 0:06:58]} 27. Kg2 {[%emt 0:01:56]} Bc3 {[%emt 0:01:25]} 28. Ra2 {[%emt 0:01:46]} Ba5 {[%emt 0:15:58]} 29. Rd1 {[%emt 0:02:49]} Rc8 {[%emt 0:01:57][%cal Og6g5]} 30. f4 {[%emt 0:07:04]} Kf7 {[%emt 0:01:18]} 31. Ra3 {[%emt 0:01:17]} Rc3 {[%emt 0:00:59]} 32. Rxc3 {[%emt 0:05:44]} Bxc3 {[%emt 0:00:01]} 33. Kf3 {[%emt 0:01:52]} Ke6 {[%emt 0:04:48]} 34. Bc5 {[%emt 0:05:21]} Bd4 {[%emt 0:01:58]} 35. Bxd4 {[%emt 0:07:43] Weighted Error Value: White=0.09 (flawless) /Black=0.08 (flawless)} 1/2-1/2